bitfinex/quotes_BTCUSD_20250527
["timestamp","ask_amount","ask_price","bid_price","bid_amount"]
[1748360432628,1.24666656,109910.0,109900.0,0.002]
[1748360433048,1.24766656,109910.0,109900.0,0.002]
[1748360433331,0.26529961,109890.0,109880.0,0.002]
[1748360433557,1.26563128,109890.0,109880.0,0.002]
[1748360433789,0.77152396,109870.0,109860.0,0.002]
[1748360434022,1.15589791,109870.0,109860.0,0.002]
[1748360435319,1.49589791,109870.0,109860.0,0.00249282]
[1748360435530,1.58795186,109870.0,109860.0,0.00249282]
[1748360436590,1.58895186,109870.0,109860.0,0.00249282]
[1748360437024,1.49789791,109870.0,109860.0,0.00249282]
[1748360437460,1.49737791,109870.0,109860.0,0.00249282]
[1748360438153,1.49729791,109870.0,109860.0,0.00249282]
[1748360439032,1.15729791,109870.0,109860.0,0.00249282]
[1748360439696,0.86097791,109870.0,109860.0,0.00249282]
[1748360439912,0.95203186,109870.0,109860.0,0.00249282]
[1748360440810,0.2002725,109850.0,109840.0,0.0751964]
[1748360441029,0.29132645,109850.0,109840.0,0.07533089]
[1748360441966,0.29132645,109850.0,109840.0,0.00213449]
[1748360442832,0.29132645,109850.0,109840.0,0.00413449]
[1748360443271,0.80751436,109850.0,109840.0,0.00413449]
[1748360443967,0.92506831,109850.0,109840.0,0.00613449]
[1748360444575,0.89856831,109850.0,109840.0,0.00613449]
[1748360445734,0.92436831,109850.0,109840.0,0.00613449]
[1748360445959,0.95226831,109850.0,109840.0,0.00613449]
[1748360446836,0.95226831,109850.0,109840.0,0.01458145]
[1748360447041,0.95226831,109850.0,109840.0,0.01458149]
[1748360447253,0.95226831,109850.0,109840.0,0.00613449]
[1748360447486,0.95226831,109850.0,109840.0,0.00413449]
[1748360447705,0.95226831,109850.0,109840.0,0.00213449]
[1748360447918,0.95226831,109850.0,109840.0,0.00313449]
[1748360448779,0.95226831,109850.0,109840.0,0.01157536]
[1748360448985,0.95226831,109850.0,109840.0,0.00313449]
[1748360449913,0.95226831,109850.0,109840.0,0.01157353]
[1748360450122,0.95226831,109850.0,109840.0,0.00313449]
[1748360451230,0.31712645,109850.0,109840.0,0.00313449]
[1748360451440,0.29132645,109850.0,109840.0,0.00313449]
[1748360452108,0.29132645,109850.0,109840.0,0.01156989]
[1748360452319,0.58280645,109850.0,109840.0,0.01156989]
[1748360452526,0.58280645,109850.0,109840.0,0.00313449]
[1748360454271,0.2002725,109850.0,109840.0,0.00313449]
[1748360456780,0.2002725,109850.0,109840.0,0.55732149]
[1748360457025,0.2002725,109850.0,109840.0,0.62659555]
[1748360457026,0.02730829,109850.0,109840.0,0.62659555]
[1748360457299,0.03641136,109850.0,109840.0,3.11394355]
[1748360457536,0.20026963,109860.0,109850.0,0.23566977]
[1748360457761,0.19116722,109860.0,109850.0,1.709409]
[1748360457991,0.18203331,109870.0,109860.0,0.53164632]
[1748360458225,0.18203331,109870.0,109860.0,0.72849388]
[1748360458446,0.18203331,109870.0,109860.0,1.10459388]
[1748360459128,0.18203331,109870.0,109860.0,0.922544]
[1748360459584,0.18403331,109870.0,109860.0,0.922544]
[1748360460015,0.18403331,109870.0,109860.0,1.016704]
[1748360460244,0.002,109870.0,109860.0,1.24415388]
[1748360460525,0.002,109890.0,109860.0,6.15646691]
[1748360460763,0.002,109890.0,109880.0,0.54931824]
[1748360460978,0.002,109890.0,109880.0,5.65645919]
[1748360461449,0.002,109890.0,109880.0,6.02611219]
[1748360462104,0.002,109890.0,109880.0,6.42611219]
[1748360462328,0.002,109890.0,109880.0,6.42711219]
[1748360462759,0.02729587,109900.0,109890.0,0.54929919]
[1748360462976,0.02729579,109900.0,109890.0,4.37654219]
[1748360463208,0.03639463,109900.0,109890.0,2.51657119]
[1748360463422,0.04549364,109900.0,109890.0,3.27472819]
[1748360463701,0.22747726,109900.0,109890.0,3.26562877]
[1748360463921,0.20018181,109900.0,109890.0,1.31057]
[1748360464143,0.20018181,109900.0,109890.0,1.40313]
[1748360464356,0.20018181,109900.0,109890.0,1.60332977]
[1748360464580,0.20018181,109900.0,109890.0,0.002]
[1748360464581,1.18205857,109900.0,109890.0,0.002]
[1748360464795,1.18205857,109900.0,109860.0,0.18504988]
[1748360464796,0.21843846,109870.0,109860.0,0.18504988]
[1748360465024,0.20933754,109870.0,109860.0,1.291241]
[1748360465239,0.20023638,109870.0,109860.0,1.501241]
[1748360465457,0.20023638,109870.0,109860.0,1.70149578]
[1748360465672,0.20023638,109870.0,109860.0,1.315868]
[1748360466101,0.20023638,109870.0,109860.0,0.977868]
[1748360466310,0.20023638,109870.0,109860.0,0.347281]
[1748360466517,0.20023638,109870.0,109860.0,0.687281]
[1748360467575,0.20023638,109870.0,109860.0,0.755281]
[1748360468235,0.20023638,109870.0,109860.0,1.155281]
[1748360468933,0.20023638,109870.0,109860.0,0.948155]
[1748360469371,0.20023638,109870.0,109860.0,0.413]
[1748360475673,0.20023638,109870.0,109860.0,0.965104]
[1748360476810,0.20023638,109870.0,109860.0,1.365104]
[1748360480742,0.2002001,109890.0,109880.0,0.555349]
[1748360481201,0.2002001,109890.0,109880.0,0.498949]
[1748360481663,0.2022001,109890.0,109880.0,0.34]
[1748360481881,0.2243001,109890.0,109880.0,0.35345713]
[1748360482088,0.2263001,109890.0,109880.0,0.35345713]
[1748360482304,0.2042001,109890.0,109880.0,0.35345713]
[1748360483047,0.2042001,109890.0,109880.0,0.53547387]
[1748360483280,0.2042001,109890.0,109880.0,1.69483587]
[1748360483521,0.19510018,109890.0,109880.0,1.69483587]
[1748360483748,0.004,109890.0,109880.0,1.95991182]
[1748360483971,0.03129853,109890.0,109880.0,1.95991182]
[1748360484203,0.21329945,109890.0,109880.0,2.03393845]
[1748360484427,0.21329945,109890.0,109880.0,1.68923745]
[1748360484658,0.21329945,109890.0,109880.0,1.98909795]
[1748360484884,0.20019994,109890.0,109880.0,1.37397513]
[1748360485123,0.20119994,109890.0,109880.0,1.10938113]
[1748360485350,0.20219994,109890.0,109880.0,1.10938113]
[1748360486027,0.20219994,109890.0,109880.0,1.50938113]
[1748360486478,0.01109934,109890.0,109880.0,6.53196932]
[1748360486709,0.02019885,109890.0,109880.0,6.53196932]
[1748360486931,0.01109934,109890.0,109880.0,6.53196932]
[1748360487154,0.01109942,109890.0,109880.0,6.53196932]
[1748360487388,0.00909942,109890.0,109880.0,6.53196932]
[1748360487607,0.00909942,109890.0,109880.0,6.53396932]
[1748360487827,0.00909942,109890.0,109880.0,6.53596932]
[1748360488248,0.01819901,109890.0,109880.0,6.53572932]
[1748360488508,0.20928217,109900.0,109890.0,0.53110002]
[1748360488733,0.01819744,109900.0,109890.0,2.8359951]
[1748360488974,0.01819744,109900.0,109890.0,2.82689518]
[1748360489222,0.01819744,109900.0,109890.0,3.23599518]
[1748360489443,0.02729645,109900.0,109890.0,3.190385]
[1748360489658,0.02729645,109900.0,109890.0,3.39968419]
[1748360489885,0.03639555,109900.0,109890.0,3.33084736]
[1748360490130,0.02729637,109900.0,109890.0,3.26582278]
[1748360490310,0.03639546,109900.0,109890.0,0.96749887]
[1748360490551,0.03639546,109900.0,109890.0,3.26582329]
[1748360491003,0.218379,109900.0,109890.0,2.27841236]
[1748360491193,0.20018156,109900.0,109890.0,1.99924102]
[1748360491468,0.20018156,109900.0,109890.0,2.00610102]
[1748360491672,0.20018156,109900.0,109890.0,2.01520078]
[1748360492336,0.20018156,109900.0,109890.0,2.10525918]
[1748360492548,0.20018156,109900.0,109890.0,2.1143591]
[1748360492966,0.20018156,109900.0,109890.0,1.8646971]
[1748360493182,0.20018156,109900.0,109890.0,1.7727771]
[1748360493183,0.19108263,109900.0,109890.0,1.7727771]
[1748360493399,0.18198362,109900.0,109890.0,1.271453]
[1748360493627,0.22598362,109900.0,109890.0,1.206312]
[1748360494795,0.35803265,109900.0,109890.0,0.4]
[1748360495020,0.23590002,109890.0,109880.0,0.01345713]
[1748360495241,0.23590002,109890.0,109880.0,0.96223513]
[1748360495461,0.23590002,109890.0,109880.0,1.252551]
[1748360495880,0.23590002,109890.0,109880.0,1.152917]
[1748360496091,0.23590002,109890.0,109880.0,0.752917]
[1748360497160,0.23690002,109890.0,109880.0,0.752917]
[1748360497376,0.32795397,109890.0,109880.0,0.752917]
[1748360497590,0.1820317,109880.0,109870.0,0.34]
[1748360497819,0.1820317,109880.0,109870.0,0.453127]
[1748360499372,0.2040317,109880.0,109870.0,0.453127]
[1748360499790,0.2265317,109880.0,109870.0,0.453127]
[1748360501298,0.18203331,109870.0,109860.0,0.56392]
[1748360501523,0.18203331,109870.0,109860.0,0.50392]
[1748360501524,0.23583464,109870.0,109860.0,0.50392]
[1748360501745,0.23583464,109870.0,109860.0,0.412]
[1748360502437,0.23583464,109870.0,109860.0,0.414]
[1748360502879,0.23583464,109870.0,109860.0,0.42310249]
[1748360503098,0.23583464,109870.0,109860.0,1.96720846]
[1748360503099,0.20933721,109870.0,109860.0,1.96720846]
[1748360503318,0.20023613,109870.0,109860.0,1.94199178]
[1748360503534,0.20023613,109870.0,109860.0,1.9510941]
[1748360504181,0.20023613,109870.0,109860.0,2.3899001]
[1748360504815,0.20023613,109870.0,109860.0,2.38079778]
[1748360505058,0.20023613,109870.0,109860.0,0.20425478]
[1748360505277,0.20023613,109870.0,109860.0,2.64335878]
[1748360505495,0.20023613,109870.0,109860.0,3.0524611]
[1748360506136,0.20023613,109870.0,109860.0,4.3828801]
[1748360506344,0.20023613,109870.0,109860.0,3.0951791]
[1748360506576,0.20023613,109870.0,109860.0,2.9902401]
[1748360506792,0.1911348,109870.0,109860.0,2.98113778]
[1748360508191,0.1911348,109870.0,109860.0,4.34279678]
[1748360508405,0.1911348,109870.0,109860.0,3.31991978]
[1748360508620,0.1911348,109870.0,109860.0,3.32222878]
[1748360509271,0.3633054,109870.0,109860.0,0.60425478]
[1748360509934,0.3633054,109870.0,109860.0,0.004]
[1748360510383,0.61402875,109870.0,109860.0,0.004]
[1748360510604,0.32598875,109870.0,109860.0,0.004]
[1748360510831,0.32598875,109870.0,109860.0,0.002]
[1748360511053,0.20021782,109880.0,109870.0,0.5311348]
[1748360511278,0.22780018,109890.0,109870.0,0.5311348]
[1748360511279,0.02929894,109890.0,109870.0,1.70182823]
[1748360511502,0.002,109890.0,109880.0,3.0596099]
[1748360511718,0.01109926,109890.0,109880.0,3.3478099]
[1748360511950,0.02929827,109890.0,109880.0,3.3478099]
[1748360512399,0.20219961,109890.0,109880.0,0.96878]
[1748360512620,0.20219961,109890.0,109880.0,0.877318]
[1748360512621,0.24599961,109890.0,109880.0,0.877318]
[1748360513493,0.24599961,109890.0,109880.0,0.74]
[1748360513926,0.24599961,109890.0,109880.0,0.75343762]
[1748360514373,0.24799961,109890.0,109880.0,0.75343762]
[1748360514862,0.22599961,109890.0,109880.0,0.94455519]
[1748360515079,0.20419961,109890.0,109880.0,0.75343762]
[1748360519859,0.20419961,109890.0,109880.0,1.57772862]
[1748360521431,0.02219943,109890.0,109880.0,1.75974536]
[1748360521648,0.21329961,109890.0,109880.0,3.50677203]
[1748360522390,0.02219893,109890.0,109880.0,3.53407336]
[1748360522623,0.02219885,109890.0,109880.0,5.06528431]
[1748360522852,0.03129852,109890.0,109880.0,5.08748431]
[1748360523077,0.02219885,109890.0,109880.0,5.08748431]
[1748360523332,0.02219876,109890.0,109880.0,5.08748431]
[1748360523566,0.03129843,109890.0,109880.0,6.13511031]
[1748360524697,0.04039827,109890.0,109880.0,1.08511031]
[1748360524941,0.04039827,109890.0,109880.0,6.01242031]
[1748360525182,0.18666801,109900.0,109880.0,6.0215204]
[1748360525411,0.18666801,109900.0,109890.0,1.652446]
[1748360526136,0.18666801,109900.0,109890.0,2.23444618]
[1748360526602,0.18666801,109900.0,109890.0,2.53094618]
[1748360526831,0.19676685,109900.0,109890.0,2.52566186]
[1748360527051,0.19676685,109900.0,109890.0,2.53476153]
[1748360527505,0.19576685,109900.0,109890.0,2.53476153]
[1748360527737,0.19685643,109900.0,109890.0,2.60476153]
[1748360527963,0.19785643,109900.0,109890.0,2.60476153]
[1748360528437,0.19985643,109900.0,109890.0,2.60476153]
[1748360528668,0.19075759,109900.0,109890.0,2.32480886]
[1748360529654,0.1816585,109900.0,109890.0,2.124609]
[1748360529880,0.1816585,109900.0,109890.0,2.2838291]
[1748360531017,0.02228685,109900.0,109890.0,5.56453879]
[1748360531238,0.22246857,109900.0,109890.0,4.95871437]
[1748360531449,0.21337006,109900.0,109890.0,3.40659786]
[1748360532204,0.21337006,109900.0,109890.0,3.40798286]
[1748360532471,0.19517229,109900.0,109890.0,1.885881]
[1748360532768,0.19517229,109900.0,109890.0,2.01989918]
[1748360533025,0.19517229,109900.0,109890.0,2.0289991]
[1748360533284,0.19517229,109900.0,109890.0,2.40070794]
[1748360533545,0.19517229,109900.0,109890.0,2.26176694]
[1748360534108,0.19517229,109900.0,109890.0,2.67286794]
[1748360535211,0.19517229,109900.0,109890.0,2.69821994]
[1748360535908,0.19517229,109900.0,109890.0,2.54859594]
[1748360536616,0.19517229,109900.0,109890.0,2.84563594]
[1748360536832,0.19517229,109900.0,109890.0,2.8547357]
[1748360537276,0.19517229,109900.0,109890.0,2.84563594]
[1748360537504,0.01318818,109900.0,109890.0,5.93923103]
[1748360537730,0.02228694,109900.0,109890.0,5.93923103]
[1748360537962,0.00408958,109900.0,109890.0,6.05550166]
[1748360538196,0.00408958,109900.0,109890.0,6.07418498]
[1748360538666,8.958e-05,109900.0,109890.0,6.60931298]
[1748360538883,0.00208958,109900.0,109890.0,6.60931298]
[1748360539387,0.00108958,109900.0,109890.0,6.60931298]
[1748360539604,0.00108958,109900.0,109890.0,6.61031298]
[1748360539869,0.02019215,109930.0,109920.0,0.54924207]
[1748360540152,0.03847453,109930.0,109920.0,3.11920807]
[1748360540418,0.01118568,109930.0,109920.0,3.21026202]
[1748360540693,0.02028196,109930.0,109920.0,4.25174302]
[1748360540982,0.02937832,109930.0,109920.0,3.71196002]
[1748360541272,0.02128196,109930.0,109920.0,3.71196002]
[1748360541568,0.03037849,109930.0,109920.0,3.71196002]
[1748360541802,0.03947493,109930.0,109920.0,3.82409302]
[1748360542015,0.21231277,109930.0,109920.0,2.61177929]
[1748360542238,0.21231277,109930.0,109920.0,2.60268202]
[1748360542455,0.21231277,109930.0,109920.0,2.61177937]
[1748360542671,0.19901649,109930.0,109920.0,2.84025637]
[1748360542879,0.19901649,109930.0,109920.0,2.82994978]
[1748360543092,0.18992013,109930.0,109920.0,2.63890193]
[1748360543303,0.18992013,109930.0,109920.0,2.72121487]
[1748360543523,0.18082352,109930.0,109920.0,2.52106941]
[1748360543747,0.20272352,109930.0,109920.0,2.55931543]
[1748360543949,0.20272352,109930.0,109920.0,2.56841287]
[1748360544651,0.20272352,109930.0,109920.0,2.41302893]
[1748360544873,0.20272352,109930.0,109920.0,2.70620043]
[1748360545079,0.20272352,109930.0,109920.0,2.73343743]
[1748360545540,0.20272352,109930.0,109920.0,1.56795141]
[1748360545541,0.22312352,109930.0,109920.0,1.56795141]
[1748360545761,0.22312352,109930.0,109920.0,1.63209241]
[1748360545969,0.22312352,109930.0,109920.0,1.61661141]
[1748360546873,0.26362765,109930.0,109920.0,1.80647841]
[1748360547086,0.26362765,109930.0,109920.0,0.01120541]
[1748360547087,0.31417747,109930.0,109920.0,0.01120541]
[1748360547318,0.31417747,109930.0,109920.0,0.35120541]
[1748360547569,0.22312352,109930.0,109920.0,0.34]
[1748360550783,0.22312352,109930.0,109920.0,1.690991]
[1748360551005,0.19203039,109930.0,109920.0,1.89113604]
[1748360551236,0.02828868,109930.0,109920.0,1.90933]
[1748360551477,0.03738496,109930.0,109920.0,1.90933]
[1748360551924,0.04648231,109930.0,109920.0,1.90023306]
[1748360552136,0.03738562,109930.0,109920.0,1.89113604]
[1748360552370,0.01919248,109930.0,109920.0,1.96113604]
[1748360552589,0.02828901,109930.0,109920.0,2.65707298]
[1748360552799,0.03738545,109930.0,109920.0,2.65707298]
[1748360553259,0.2193194,109930.0,109920.0,2.65707298]
[1748360553486,0.22841609,109930.0,109920.0,2.65707298]
[1748360554330,0.22841609,109930.0,109920.0,2.64797604]
[1748360554551,0.02828925,109930.0,109920.0,2.65707315]
[1748360554766,0.21931981,109930.0,109920.0,2.64797604]
[1748360555218,0.21931973,109930.0,109920.0,2.66617017]
[1748360555436,0.21931973,109930.0,109920.0,4.84485704]
[1748360556118,0.21931973,109930.0,109920.0,5.15045398]
[1748360556343,0.22841642,109930.0,109920.0,5.15045415]
[1748360556562,0.22841642,109930.0,109920.0,5.37845317]
[1748360556778,0.21932014,109930.0,109920.0,5.36935615]
[1748360557007,0.21932014,109930.0,109920.0,5.36025904]
[1748360557221,0.21022378,109930.0,109920.0,5.36025904]
[1748360557453,0.23403064,109930.0,109920.0,1.037514]
[1748360557678,0.23403064,109930.0,109920.0,0.947234]
[1748360558140,0.23403064,109930.0,109920.0,0.81]
[1748360560352,0.23403064,109930.0,109920.0,0.47]
[1748360562326,0.23403064,109930.0,109920.0,1.129312]
[1748360562973,0.19203064,109930.0,109920.0,1.469312]
[1748360565838,0.23373064,109930.0,109920.0,0.921984]
[1748360566046,0.25535783,109930.0,109920.0,0.81]
[1748360567736,0.25535783,109930.0,109920.0,0.41]
[1748360568380,0.25535783,109930.0,109920.0,0.81]
[1748360568799,0.25535783,109930.0,109920.0,0.41]
[1748360569022,0.80646556,109930.0,109920.0,0.41]
[1748360569253,0.80646556,109930.0,109920.0,0.07]
[1748360569254,1.18427951,109930.0,109920.0,0.07]
[1748360570591,0.24376317,109910.0,109900.0,0.39468]
[1748360571303,0.33481712,109910.0,109900.0,0.39468]
[1748360571744,0.24376317,109910.0,109900.0,0.39468]
[1748360572211,0.20016317,109910.0,109900.0,0.002]
[1748360572448,0.22166317,109910.0,109900.0,0.622129]
[1748360572679,0.22166317,109910.0,109900.0,0.623129]
[1748360573355,0.24326317,109910.0,109900.0,0.345]
[1748360573854,0.24326317,109910.0,109900.0,0.542023]
[1748360574070,0.20016317,109910.0,109900.0,0.542023]
[1748360574518,0.20376537,109920.0,109910.0,1.13762706]
[1748360574519,0.18196537,109920.0,109910.0,1.13762706]
[1748360574737,0.18196537,109920.0,109910.0,2.269511]
[1748360574738,0.20016033,109920.0,109910.0,2.269511]
[1748360575188,0.20016033,109920.0,109910.0,1.718789]
[1748360575851,0.20016033,109920.0,109910.0,0.34]
[1748360575852,0.24276033,109920.0,109910.0,0.34]
[1748360576065,0.24276033,109920.0,109910.0,0.35102822]
[1748360577394,0.24276033,109920.0,109910.0,0.35202822]
[1748360577685,1.17168201,109920.0,109910.0,0.001]
[1748360578105,0.62057428,109920.0,109910.0,0.001]
[1748360578546,0.71162823,109920.0,109910.0,0.001]
[1748360579428,0.62057428,109920.0,109910.0,0.001]
[1748360580764,0.62053428,109920.0,109910.0,0.001]
[1748360580998,0.33381428,109920.0,109910.0,0.001]
[1748360581221,0.20016033,109920.0,109910.0,0.61774518]
[1748360581435,0.20016033,109920.0,109910.0,0.79971241]
[1748360581673,0.20016033,109920.0,109910.0,1.008647]
[1748360581891,0.19106289,109920.0,109910.0,1.008647]
[1748360582318,0.19106289,109920.0,109910.0,1.19061406]
[1748360582978,0.18193395,109930.0,109920.0,0.34]
[1748360583869,0.22551774,109940.0,109920.0,0.34]
[1748360583870,0.01819123,109940.0,109930.0,0.32551964]
[1748360584098,0.20969651,109940.0,109930.0,0.38843064]
[1748360584362,0.20060098,109940.0,109930.0,0.38843064]
[1748360584576,0.19150528,109940.0,109930.0,0.38843064]
[1748360584806,0.19103048,109930.0,109920.0,0.34]
[1748360585026,0.23143048,109930.0,109920.0,0.453316]
[1748360585241,0.23143048,109930.0,109920.0,0.34]
[1748360586357,0.60916443,109930.0,109920.0,0.34]
[1748360586580,0.60916443,109930.0,109900.0,0.49585206]
[1748360586581,0.24146317,109910.0,109900.0,0.49585206]
[1748360586796,0.24146317,109910.0,109900.0,1.14880506]
[1748360587039,0.24146317,109910.0,109900.0,0.80880506]
[1748360587264,0.24146317,109910.0,109900.0,0.62142606]
[1748360587482,0.24146317,109910.0,109900.0,0.87122606]
[1748360587702,0.37485999,109910.0,109900.0,0.01301206]
[1748360587907,0.37485999,109910.0,109900.0,0.01401206]
[1748360588147,0.37485999,109910.0,109900.0,0.35601206]
[1748360588382,0.33251712,109910.0,109900.0,0.35601206]
[1748360588600,0.24146317,109910.0,109900.0,0.35601206]
[1748360589456,0.24146317,109910.0,109900.0,0.01601206]
[1748360589677,0.33251712,109910.0,109900.0,0.35601206]
[1748360590107,0.33251712,109910.0,109900.0,0.35501206]
[1748360590324,0.40662599,109910.0,109900.0,0.35501206]
[1748360590773,0.33251712,109910.0,109900.0,0.35301206]
[1748360591008,0.20016317,109910.0,109900.0,0.01301206]
[1748360592395,0.20016317,109910.0,109900.0,1.80516806]
[1748360592396,0.20116317,109910.0,109900.0,1.80516806]
[1748360592855,0.20116317,109910.0,109900.0,2.09184806]
[1748360593774,0.20116317,109910.0,109900.0,2.49184806]
[1748360594883,0.20116317,109910.0,109900.0,4.71726668]
[1748360595100,0.20116317,109910.0,109900.0,3.99655506]
[1748360595101,0.19206524,109910.0,109900.0,3.99655506]
[1748360595302,0.19206524,109910.0,109900.0,3.92933768]
[1748360595303,0.18296706,109910.0,109900.0,3.92933768]
[1748360595964,0.18296706,109910.0,109900.0,3.29961506]
[1748360596192,0.18296706,109910.0,109900.0,3.23147606]
[1748360597013,0.18296706,109910.0,109900.0,3.40442606]
[1748360597483,0.18296706,109910.0,109900.0,3.32098806]
[1748360597699,0.18296706,109910.0,109900.0,3.61748806]
[1748360597918,0.18296706,109910.0,109900.0,3.65705006]
[1748360598171,0.4690495,109940.0,109930.0,0.18193395]
[1748360598172,0.1824095,109940.0,109930.0,0.18193395]
[1748360598395,0.1824095,109940.0,109920.0,0.35819479]
[1748360598396,0.20012709,109930.0,109920.0,0.9169709]
[1748360598628,0.20922345,109930.0,109920.0,4.65138809]
[1748360598896,0.19150537,109940.0,109930.0,0.20012692]
[1748360599124,0.20060099,109940.0,109930.0,1.84054009]
[1748360599348,0.20060099,109940.0,109930.0,2.49523289]
[1748360599618,0.20969627,109940.0,109930.0,2.49523289]
[1748360599915,0.02777887,109940.0,109930.0,2.50432909]
[1748360600148,0.0004921,109940.0,109930.0,0.95496954]
[1748360600404,0.020189,109950.0,109940.0,0.588904]
[1748360600644,0.002,109950.0,109940.0,6.40329795]
[1748360600879,0.002,109950.0,109940.0,6.80329795]
[1748360601120,0.002,109950.0,109940.0,6.87329795]
[1748360601361,0.01109429,109950.0,109940.0,6.87329795]
[1748360601608,0.002,109950.0,109940.0,6.87329795]
[1748360601821,0.01109438,109950.0,109940.0,6.87329795]
[1748360602068,0.01109438,109950.0,109940.0,6.87529795]
[1748360602286,0.01109438,109950.0,109940.0,6.85995584]
[1748360602287,0.03837841,109950.0,109940.0,6.85995584]
[1748360602527,0.02928354,109950.0,109940.0,6.22016084]
[1748360603232,0.02928354,109950.0,109940.0,6.88913984]
[1748360603715,0.02018892,109950.0,109940.0,6.88913984]
[1748360603943,0.02928363,109950.0,109940.0,5.93477684]
[1748360604175,0.01109438,109950.0,109940.0,5.93477684]
[1748360604397,0.02018892,109950.0,109940.0,6.88913984]
[1748360605287,0.02928371,109950.0,109940.0,6.88913984]
[1748360605514,0.22584319,109990.0,109970.0,0.01818652]
[1748360605749,0.20912825,109980.0,109970.0,0.38666]
[1748360605972,0.20003611,109980.0,109970.0,3.810718]
[1748360606191,0.20003611,109980.0,109970.0,4.154471]
[1748360606192,0.18045473,109980.0,109970.0,4.154471]
[1748360606452,0.2020176,109990.0,109980.0,0.34]
[1748360606676,0.2020176,109990.0,109980.0,1.308491]
[1748360607128,0.2020176,109990.0,109980.0,1.708491]
[1748360607354,0.2447176,109990.0,109980.0,1.25472537]
[1748360607643,0.2447176,109990.0,109980.0,1.22135637]
[1748360607869,0.2447176,109990.0,109980.0,0.91962547]
[1748360608091,0.2447176,109990.0,109980.0,0.89628947]
[1748360608532,0.85216644,109990.0,109980.0,0.75159147]
[1748360608761,0.33577155,109990.0,109980.0,0.41159147]
[1748360610557,0.33413155,109990.0,109980.0,0.41159147]
[1748360611427,0.33413155,109990.0,109980.0,1.13999647]
[1748360611428,0.2430776,109990.0,109980.0,1.13999647]
[1748360611657,0.2430776,109990.0,109980.0,0.96970847]
[1748360611906,0.19128603,109990.0,109980.0,4.03816266]
[1748360612120,0.19128603,109990.0,109980.0,4.75983934]
[1748360612121,0.00036,109990.0,109980.0,4.75983934]
[1748360612352,0.00036,109990.0,109980.0,4.78023934]
[1748360613052,0.00036,109990.0,109980.0,6.41657334]
[1748360613275,0.03672544,109990.0,109980.0,6.41757334]
[1748360613498,0.02763379,109990.0,109980.0,6.37977734]
[1748360613724,0.02763362,109990.0,109980.0,6.37977734]
[1748360613950,0.0367256,109990.0,109980.0,5.74119034]
[1748360614172,0.00945115,109990.0,109980.0,5.74119034]
[1748360614415,0.00036,109990.0,109980.0,5.76239034]
[1748360614628,0.00036,109990.0,109980.0,5.78309034]
[1748360614858,0.00945107,109990.0,109980.0,5.78309034]
[1748360615127,0.00945107,109990.0,109980.0,6.88777334]
[1748360615350,0.00945107,109990.0,109980.0,6.91392672]
[1748360616317,0.00036,109990.0,109980.0,6.91392672]
[1748360616533,0.10362263,110000.0,109990.0,0.54910891]
[1748360616754,0.10326263,110000.0,109990.0,5.73256286]
[1748360616977,0.09417214,110000.0,109990.0,5.73256286]
[1748360617195,0.10326255,110000.0,109990.0,5.73256286]
[1748360617438,0.11235312,110000.0,109990.0,5.73256286]
[1748360617692,0.11235312,110000.0,109990.0,6.11136286]
[1748360617942,0.12144436,110000.0,109990.0,6.09016286]
[1748360618183,0.29417279,110000.0,109990.0,5.05564331]
[1748360618397,0.10326371,110000.0,109990.0,5.18031935]
[1748360618609,0.09417297,110000.0,109990.0,5.27035935]
[1748360618860,0.11235453,110000.0,109990.0,5.27035935]
[1748360619087,0.33547271,110000.0,109990.0,1.060822]
[1748360619316,0.33547271,110000.0,109990.0,0.985668]
[1748360619317,0.31729148,110000.0,109990.0,0.985668]
[1748360619534,0.31729148,110000.0,109990.0,0.545087]
[1748360619975,0.31729148,110000.0,109990.0,0.885087]
[1748360621081,1.26117714,110000.0,109990.0,0.74]
[1748360621301,0.23272628,109990.0,109980.0,0.08159147]
[1748360621985,0.23272628,109990.0,109980.0,0.48159147]
[1748360622657,0.23272628,109990.0,109980.0,0.48259147]
[1748360623601,0.23272628,109990.0,109980.0,0.97544547]
[1748360627559,0.23272628,109990.0,109980.0,0.48259147]
[1748360627774,0.32378023,109990.0,109980.0,0.48259147]
[1748360628011,0.32378023,109990.0,109980.0,0.08259147]
[1748360628012,0.41056725,109990.0,109980.0,0.08259147]
[1748360628484,0.84017512,109990.0,109980.0,0.08259147]
[1748360628714,0.32378023,109990.0,109980.0,0.0714921]
[1748360629606,0.332296,109990.0,109980.0,0.0714921]
[1748360629816,0.33229612,109990.0,109980.0,0.0714921]
[1748360630034,0.84869101,109990.0,109980.0,0.0714921]
[1748360630650,0.84017512,109990.0,109980.0,0.0714921]
[1748360630899,0.84017512,109990.0,109980.0,0.0704921]
[1748360631117,0.84017512,109990.0,109980.0,0.08154588]
[1748360632200,0.32378023,109990.0,109980.0,0.08154588]
[1748360632625,0.33229594,109990.0,109980.0,0.08154588]
[1748360632845,0.32378023,109990.0,109980.0,0.0704921]
[1748360633084,0.93122907,109990.0,109980.0,0.0704921]
[1748360633537,0.93122907,109990.0,109980.0,0.0004921]
[1748360634200,0.93322907,109990.0,109980.0,0.0004921]
[1748360634841,0.94174567,109990.0,109980.0,0.0004921]
[1748360635074,0.93322907,109990.0,109980.0,0.0004921]
[1748360635947,1.01628662,109990.0,109980.0,0.0004921]
[1748360636161,1.01628662,109990.0,109960.0,0.002]
[1748360636162,0.75704886,109970.0,109960.0,0.002]
[1748360636374,0.75704886,109970.0,109960.0,0.002493]
[1748360636375,1.22539676,109970.0,109960.0,0.002493]
[1748360637040,1.23993761,109970.0,109960.0,0.002493]
[1748360637481,1.24093761,109970.0,109960.0,0.002493]
[1748360638402,1.14988366,109970.0,109960.0,0.002493]
[1748360639682,0.84810281,109970.0,109960.0,0.002493]
[1748360639905,0.61994792,109970.0,109960.0,0.002493]
[1748360640559,0.62846567,109970.0,109960.0,0.002493]
[1748360640781,0.61994792,109970.0,109960.0,0.002493]
[1748360641007,0.71951962,109970.0,109960.0,0.002493]
[1748360641225,1.24193761,109970.0,109960.0,0.002493]
[1748360645477,1.23670761,109970.0,109960.0,0.002493]
[1748360648330,1.32666761,109970.0,109960.0,0.002493]
[1748360649440,1.38666761,109970.0,109960.0,0.002493]
[1748360652668,0.2657312,109950.0,109940.0,0.002]
[1748360652902,1.96080799,109950.0,109940.0,0.00249354]
[1748360653141,1.91080799,109950.0,109940.0,0.00249354]
[1748360653370,0.8321625,109930.0,109920.0,0.002]
[1748360653638,1.3904704,109930.0,109920.0,0.002494]
[1748360654301,0.9642704,109930.0,109920.0,0.002494]
[1748360654515,1.3904704,109930.0,109920.0,0.002494]
[1748360655393,1.3904704,109930.0,109920.0,0.001884]
[1748360655606,1.3904704,109930.0,109880.0,0.31020761]
[1748360655607,0.19110002,109890.0,109880.0,0.31020761]
[1748360655830,0.19110002,109890.0,109880.0,0.57676703]
[1748360656322,0.19110002,109890.0,109880.0,0.64107726]